Cogmind - Beta 14 @@@ ROGUE MODE // 2025.05.03 @ 18:22:54 Player: Zaros426 Result: Destroyed by Enhanced Grunt with Neutron Cannon Performance ------------- Evolutions (4) 2000 Regions Visited (18) 3600 Robots Destroyed (332) 1660 Value Destroyed (10906) 10906 Prototype IDs (68) 1360 Alien Tech Used (1) 200 Bonus (1905) 1905 TOTAL SCORE: 21631 Bonus ------- High Alert Combat Kills 499 Follower Combat Kills 69 Entered Garrisons 200 Aligned with FarCom 300 Met Data Miner 300 Met Imprinter 300 Acquired ECA 300 Friendly Fire -63 Cogmind --------- Core Integrity 0/850 Matter 164/300 Energy 100/100 System Corruption 12% Temperature Cool (0) Movement Core (50) Location -6/Data Miner Parts ------- > --- POWER (1) -------- (None) > --- PROPULSION (4) --- (None) > --- UTILITY (7) ------ Terrain Scan Processor Core Analyzer Supersonic Drone Bay (1/1) > --- WEAPON (3) ------- (None) > --- INVENTORY (5) ---- Improved Cooling System Terrain Scanner Advanced ECM Suite Dynamic Insulation System Chainsword Peak State ------------ > --- POWER ------------ Improved Deuterium Engine > --- PROPULSION ------- Armored Huge Wheel Armored Huge Wheel > --- UTILITY ---------- Advanced Heat Sink Huge Storage Unit Advanced Terrain Scanner Advanced Terrain Scan Processor Precision Energy Filter Makeshift Hacking Suite Makeshift System Shield > --- WEAPON ----------- Improved EM Pulse Cannon Improved EM Pulse Cannon Antimatter Cannon > --- INVENTORY -------- Cooled Ion Engine Improved Treads Improved Treads Armored Treads Armored Treads Advanced Treads Medium Treads High-capacity Battery High-capacity Matter Pod Improved Sensor Array Encrypted Comm Array Advanced ECM Suite Improved Force Field Dynamic Insulation System Supersonic Drone Bay Enhanced Autogun Gauss Cannon Advanced EMP Blaster Improved Datajack Chainsword [Rating: 71] Favorites ----------- Power Improved Deuterium Engine Engine Improved Deuterium Engine Power Core Nuclear Core Propulsion Armored Treads Treads Armored Treads Leg Carbon-fiber Leg Wheel Armored Huge Wheel Hover Unit Improved Airjet Flight Unit Cooled VTOL Module Utility Huge Storage Unit Device Improved Sensor Array Storage Huge Storage Unit Processor Improved Targeting Computer Hackware Hacking Suite Protection Hardened Medium Armor Plating Weapon Improved EM Pulse Cannon Energy Gun Precision Beam Rifle Energy Cannon Improved EM Pulse Cannon Ballistic Gun Enhanced Autogun Ballistic Cannon Antimatter Cannon Launcher Advanced EMP Blaster Special Weapon Mining Laser Slashing Weapon Chainsword Piercing Weapon CR-A16's Pointy Stick Special Melee Weapon Datajack Build | -11 -10 -10 -9 -9 -9 -8 -8 -8 -8 -7 -7 -7 -7 -6 -6 -6 -6 -6 ------- Run | Yrd Mat Min Mat Min Exi Min Mat Gar Mat Fac Low Low Zio Pro Fac Low Low Dat Slots Evolved 8 | . . . 2 . . . 2 . . 2 . . . . 2 . . . Power . | . . . . . . . . . . . . . . . . . . . Propulsion 2 | . . . . . . . 2 . . . . . . . . . . . Utility 5 | . . . 2 . . . . . . 1 . . . . 2 . . . Weapon 1 | . . . . . . . . . . 1 . . . . . . . . Parts Attached 445 | 7 20 14 49 . 2 . 50 50 48 35 9 18 6 25 55 20 15 22 Power 25 | 1 2 . 3 . . . 3 5 6 . . 1 . . 3 1 . . Engine 20 | 1 2 . 2 . . . 2 4 5 . . 1 . . 2 1 . . Core 5 | . . . 1 . . . 1 1 1 . . . . . 1 . . . Reactor . | . . . . . . . . . . . . . . . . . . . Propulsion 141 | 2 4 11 26 . . . 8 20 9 18 . 1 2 6 16 5 3 10 Treads 84 | 2 2 5 18 . . . 6 12 9 5 . . . 2 10 3 3 7 Leg 3 | . . . . . . . . . . . . . 1 2 . . . . Wheel 52 | . 2 6 8 . . . 2 8 . 11 . 1 1 2 6 2 . 3 Hover 1 | . . . . . . . . . . 1 . . . . . . . . Flight 1 | . . . . . . . . . . 1 . . . . . . . . Utility 120 | 1 9 1 13 . . . 9 8 12 8 9 9 . 8 20 6 5 2 Device 60 | . . . . . . . 2 3 3 4 7 7 . 7 15 6 5 1 Storage 7 | 1 4 . . . . . . . . . . 1 . . . . . 1 Processor 9 | . 1 . 2 . . . 1 1 . 1 1 . . . 2 . . . Hackware 7 | . . . 2 . . . . . 2 1 . . . . 2 . . . Protection 37 | . 4 1 9 . . . 6 4 7 2 1 1 . 1 1 . . . Artifact . | . . . . . . . . . . . . . . . . . . . Weapon 159 | 3 5 2 7 . 2 . 30 17 21 9 . 7 4 11 16 8 7 10 Energy Gun 23 | 1 . . . . . . 4 6 5 1 . 1 1 . 1 . 1 2 Energy Cannon 54 | . . 2 6 . 1 . 12 3 9 5 . 4 1 4 3 . 1 3 Ballistic Gun 32 | 2 4 . 1 . . . 10 . 2 . . . . 1 6 . 4 2 Ballistic Cannon 11 | . . . . . . . . . . 1 . . . 1 5 4 . . Launcher 12 | . . . . . . . 1 3 1 . . 1 . 3 . 2 . 1 Special Weapon 2 | . 1 . . . . . 1 . . . . . . . . . . . Impact Weapon . | . . . . . . . . . . . . . . . . . . . Slashing Weapon 19 | . . . . . . . 2 5 3 2 . 1 1 1 1 1 1 1 Piercing Weapon 1 | . . . . . . . . . . . . . 1 . . . . . Special Melee Weapon 5 | . . . . . 1 . . . 1 . . . . 1 . 1 . 1 Unidentified Prototypes 17 | . . . 1 . . . 5 . 3 3 . 1 . 1 3 . . . Corrupted Parts 1 | . . . . . . . . . . . . . . . . . . 1 System Corruption 4 | . . . . . . . . . . . . . . . . . . 4 Parts Lost 49 | . 1 2 3 . . . 4 2 3 1 . 1 . 3 6 2 1 20 Power 8 | . . . . . . . 2 1 1 . . . . . 2 1 . 1 Propulsion 15 | . . 1 . . . . . 1 . . . . . . 1 1 1 10 Utility 10 | . 1 1 2 . . . . . . . . . . 2 1 . . 3 Weapon 16 | . . . 1 . . . 2 . 2 1 . 1 . 1 2 . . 6 Highest Loss Streak 20 | . 1 2 1 . . . 2 1 1 1 . 1 . 2 5 1 1 20 To Critical Strikes . | . . . . . . . . . . . . . . . . . . . Average Slot Usage (%) 94 | . 98 100 99 100 100 100 99 99 99 80 83 82 83 82 96 99 99 79 Engine 7 | . 14 14 7 11 11 11 8 7 8 7 7 7 7 7 4 6 6 4 Treads 18 | . 21 1 19 22 22 22 35 22 35 1 . . . . 20 25 25 20 Wheel 5 | . 6 26 2 . . . . 13 . 14 15 15 14 14 4 . . 3 Device 10 | . . . . . . . 1 2 2 2 21 22 23 21 13 20 19 17 Storage 8 | . 14 14 11 11 11 11 9 9 9 7 7 7 7 7 6 6 6 6 Processor 9 | . . . 10 11 11 11 9 9 9 3 7 7 7 7 7 13 13 13 Hackware 5 | . . . 12 11 11 11 9 7 9 10 . . . . 12 . . . Protection 6 | . 13 14 8 11 11 11 7 7 5 7 . . . . 2 6 6 5 Energy Cannon 9 | . . 7 21 22 13 22 8 3 11 9 7 11 15 18 1 . . . Ballistic Gun 5 | . 27 21 . . . . 7 . . . . . . . 9 10 11 . Ballistic Cannon 1 | . . . . . . . . . . 1 . . . . 7 6 6 . Slashing Weapon 2 | . . . . . . . 1 3 3 11 15 9 7 1 . 1 . 1 Peak Build Rating 71 | 6 13 13 23 22 24 24 41 44 43 60 58 61 51 61 71 62 61 49 Average Rating 41 | 5 9 12 20 21 22 24 36 37 38 55 54 52 50 53 63 59 56 42 On Entrance 35 | . 6 13 13 21 22 24 24 40 39 39 58 54 51 51 53 61 56 53 Naked Turns . | . . . . . . . . . . . . . . . . . . . Heaviest Build 136 | 12 98 100 107 100 100 100 104 107 110 125 122 121 110 136 131 129 130 108 Greatest Support 96 | 40 40 32 40 40 40 40 80 80 80 80 56 56 56 56 90 83 86 96 Greatest Overweight (x) 6 | . 3 6 3 2 2 2 3 3 2 4 2 2 3 4 4 4 4 6 Average Overweight (x) 1 | . 1 3 2 2 2 2 1 1 1 2 1 1 1 1 1 1 1 1 Largest Inventory Capacity 25 | 8 25 25 25 25 25 25 25 25 25 25 25 25 25 25 25 25 25 25 Average Capacity 24 | 7 17 25 25 25 25 25 25 25 25 25 25 25 25 25 25 25 25 24 Most Carried 25 | 4 25 25 25 25 25 25 25 25 25 25 25 25 25 25 25 25 25 24 Average Carried 23 | 1 13 24 24 24 24 25 24 24 24 24 24 24 24 24 19 24 23 21 Final Capacity 25 | 8 25 25 25 25 25 25 25 25 25 25 25 25 25 25 25 25 25 5 Final Carried 25 | 4 25 25 25 25 25 24 25 23 25 25 25 24 25 23 24 24 22 5 Class Distribution -------------------- 37% | Mutant 19% | Skirmisher 16% | Assassin 6% | Hacker-Mutant 6% | Scavenger-Mutant 4% | Scavenger-Skirmisher 3% | Hacker-Gunner Dominant Class ---------------- Mutant | -10/Materials Mutant | -10/Mines Hacker-Mutant | -9/Materials Mutant | -9/Mines Mutant | -9/Exiles Mutant | -8/Mines Mutant | -8/Materials Scavenger-Mutant | -8/Garrison Mutant | -8/Materials Mutant | -7/Factory Assassin | -7/Lower Caves Assassin | -7/Lower Caves Assassin | -7/Zion Skirmisher | -6/Proximity Caves Hacker-Gunner | -6/Factory Skirmisher | -6/Lower Caves Skirmisher | -6/Lower Caves Assassin | -6/Data Miner Resources | -11 -10 -10 -9 -9 -9 -8 -8 -8 -8 -7 -7 -7 -7 -6 -6 -6 -6 -6 ----------- Run | Yrd Mat Min Mat Min Exi Min Mat Gar Mat Fac Low Low Zio Pro Fac Low Low Dat Matter Collected 8401 | 288 632 326 620 . 30 . 766 777 660 399 80 240 50 392 1449 1010 682 . Remotely . | . . . . . . . . . . . . . . . . . . . Salvage Created 14511 | 113 789 351 2771 76 . 286 1765 1109 2065 908 220 454 . 923 1633 895 153 . Parts 707 | 5 59 22 161 5 . 12 96 47 89 44 9 13 . 39 71 29 6 . Haulers Intercepted 19 | . 2 . 5 . . . 4 . 3 1 . 1 . . 3 . . . Recyclers Shooed 7 | . 2 . . . . . 3 . 1 . . . . . 1 . . . Parts Field Recycled . | . . . . . . . . . . . . . . . . . . . Retrieved Matter . | . . . . . . . . . . . . . . . . . . . Parts Self-Destructed 51 | . . . . . . . . . . . 8 5 . 16 . 16 6 . Prevented 47 | . . . . . . . . . . . 2 7 . 23 . 15 . . Kills | -11 -10 -10 -9 -9 -9 -8 -8 -8 -8 -7 -7 -7 -7 -6 -6 -6 -6 -6 ------- Run | Yrd Mat Min Mat Min Exi Min Mat Gar Mat Fac Low Low Zio Pro Fac Low Low Dat Combat Hostiles Destroyed 213 | . 13 8 40 . . 7 23 24 27 10 4 5 . 17 16 15 4 . Melee 16 | . . . . . . . 1 . 5 6 4 . . . . . . . Guns 51 | . 13 7 . . . . 9 12 5 . . . . . 4 1 . . Cannons 94 | . . 1 36 . . 7 3 3 12 4 . . . 7 8 9 4 . AOE 38 | . . . 3 . . . 7 7 2 . . 5 . 9 2 3 . . Classes Destroyed 18 | 2 6 1 4 . . 1 1 1 . . . 1 . . 1 . . . Worker 24 | . 2 2 3 1 . 1 5 . 1 2 . . . . 7 . . . Builder 19 | . 4 . 5 . . . 1 . 1 1 . . . . 7 . . . Tunneler 3 | 1 . . . . . . . . . 1 . . . . 1 . . . Hauler 19 | . 2 . 5 . . . 4 . 3 1 . 1 . . 3 . . . Recycler 27 | 1 2 2 6 1 . 1 3 . 2 4 . . . . 5 . . . Mechanic 4 | . . . 1 . . . . . 1 1 . . . 1 . . . . Operator 5 | . . . 2 . . . 2 . 1 . . . . . . . . . Watcher 19 | . 3 . 5 . . . 4 . 5 1 . . . . 1 . . . Swarmer 54 | . 6 5 6 . . 6 4 11 . 7 . . . 6 2 1 . . Grunt 96 | . 7 2 23 . . . 13 3 16 . 4 5 . 4 6 10 3 . Brawler 8 | . . . . . . . 2 . 1 . . . . 3 1 1 . . Duelist 6 | . . . 1 . . . . . 1 . . . . 2 . 2 . . Sentry 32 | . . . 10 . . . 4 5 8 2 . . . 1 1 1 . . Demolisher 1 | . . 1 . . . . . . . . . . . . . . . . Specialist 2 | . . . . . . . . . . . . . . . 2 . . . Hunter 9 | . . . . . . 1 . 3 1 . . . . 1 2 . 1 . Programmer 5 | . . . . . . . . 2 . 1 . . . . 2 . . . Packrat 2 | . . . . . . . . . . . . . . . . 2 . . Samaritan 1 | . . . . . . . . . . . . 1 . . . . . . Best Kill Streak 12 | 2 4 8 5 1 . 3 10 5 3 6 3 5 . 12 5 5 3 . Combat Bots Only 11 | . 3 3 3 . . 3 4 5 3 4 3 5 . 11 3 5 3 . Max Kills in Single Turn 5 | 1 2 2 3 1 . 2 2 2 2 1 1 2 . 3 5 1 1 . Gunslinging 1 | . 1 . . . . . . . 1 . . . . . . . . . Exploded 3 | . . . 2 . . . 2 2 2 . . 2 . 3 2 1 . . Melee 1 | . . . . . . . 1 . 1 1 1 . . . . . . . Uniques/NPCs Destroyed . | . . . . . . . . . . . . . . . . . . . Combat | -11 -10 -10 -9 -9 -9 -8 -8 -8 -8 -7 -7 -7 -7 -6 -6 -6 -6 -6 -------- Run | Yrd Mat Min Mat Min Exi Min Mat Gar Mat Fac Low Low Zio Pro Fac Low Low Dat Hostile Shots Fired 1112 | . 76 42 95 . . 32 119 94 114 69 7 12 . 85 132 126 20 89 Missed 317 | . 16 8 23 . . 10 26 19 33 22 2 3 . 24 40 53 6 32 Damage Taken 13500 | . 636 533 1023 44 . 198 1788 909 1413 561 83 66 . 1185 1003 972 124 2962 Core 1746 | . 85 64 112 . . 60 164 113 109 80 . . . 82 122 100 11 644 Absorbed by Shields 476 | . . . . . . . . 87 . 20 . . . . . 277 92 . Ignored by Resistances 92 | . . . . . . . 92 . . . . . . . . . . . Regen/Repaired (Parts) 423 | . 140 . . . . . . . 283 . . . . . . . . . Core Remaining (%) 60 | 100 . 40 . . . 57 . . 29 . . . . 76 . . . . Volleys Fired 628 | 3 72 23 91 4 . 16 85 68 66 7 . 16 . 27 84 38 28 . Largest 3 | 2 2 2 2 2 . 2 2 2 2 2 . 1 . 3 3 3 3 . Hottest 207 | 40 100 112 112 112 . 112 126 138 138 138 . 69 . 207 178 113 113 . Shots Fired 1243 | 6 143 45 181 8 . 32 162 105 135 14 . 16 . 46 191 87 72 . Gun 563 | 6 142 39 . . . . 90 67 56 . . . . . 93 33 37 . Cannon 622 | . . 6 181 8 . 32 68 19 76 14 . 6 . 35 98 44 35 . Launcher 56 | . . . . . . . 3 19 3 . . 10 . 11 . 10 . . Special 2 | . 1 . . . . . 1 . . . . . . . . . . . Kinetic 620 | 6 142 39 . . . . 90 . . 1 . . . 12 181 77 72 . Thermal 91 | . 1 . . . . . 1 67 16 . . . . . 6 . . . Explosive . | . . . . . . . . . . . . . . . . . . . Electromagnetic 532 | . . 6 181 8 . 32 71 38 119 13 . 16 . 34 4 10 . . Robot Hit Streak 24 | 2 9 24 23 14 . 6 18 23 14 5 . 5 . 7 12 7 10 . Robot Miss Streak 6 | 1 6 4 4 1 . 4 2 2 3 3 . 2 . 3 3 3 3 . Penetration Max 1 | . . . . . . . . . . . . . . . 1 . . . Secondary Targets 6 | . 2 . . . . . 2 1 1 . . . . . . . . . Max Gunslinging Chain 1 | . 1 . . . . . 1 1 1 . . . . . . . . . Shots Hit Robots 843 | 4 82 31 128 5 4 19 122 75 108 35 9 11 . 35 111 42 20 2 Core Hits 442 | 3 35 15 73 2 . 10 58 37 47 15 4 10 . 28 68 30 7 . Critical Kills 3 | . 2 . . . . . . . . . . . . . 1 . . . Critical Parts Destroyed 1 | . . . . . . . . . . . . . . . 1 . . . Critical Strikes 33 | . 2 1 3 . . . 2 8 3 3 . . . 3 6 2 . . Burn 7 | . . . . . . . . 6 1 . . . . . . . . . Destroy 4 | . 2 . . . . . . . . . . . . . 2 . . . Blast 8 | . . . . . . . . . . . . . . 2 4 2 . . Corrupt 11 | . . 1 3 . . . 2 1 2 1 . . . 1 . . . . Sever 3 | . . . . . . . . 1 . 2 . . . . . . . . Melee Attacks 167 | . . . . . 4 . 5 32 28 54 10 12 . 6 . 6 1 9 Impact . | . . . . . . . . . . . . . . . . . . . Slashing 151 | . . . . . . . 5 32 24 54 10 12 . 1 . 4 1 8 Piercing . | . . . . . . . . . . . . . . . . . . . Sneak Attacks 38 | . . . . . 4 . . . 7 14 . 2 . 5 . 4 . 2 Combat Hostiles . | . . . . . . . . . . . . . . . . . . . Follow-up Attacks 5 | . . . . . . . . . . 3 2 . . . . . . . Damage Inflicted 26455 | 61 1149 555 3674 115 . 434 3200 2453 3474 2128 428 807 . 1483 4322 1608 490 74 Guns 5951 | 61 1146 431 . . . . 1068 889 968 . . . . . 1073 192 123 . Cannons 11126 | . . 81 3070 115 . 434 1341 458 1444 184 . 73 . 698 2158 703 367 . Explosions 5182 | . . 43 604 . . . 742 648 243 . . 429 . 785 1091 597 . . Melee 4193 | . . . . . . . 49 458 819 1944 428 305 . . . 116 . 74 Ramming 3 | . 3 . . . . . . . . . . . . . . . . . Kinetic 7456 | 61 1146 431 . . . . 1068 . . 26 . . . 272 3067 895 490 . Thermal 2864 | . . 43 507 . . . 217 920 342 . . . . 31 804 . . . Explosive 482 | . . . 97 . . . 385 . . . . . . . . . . . Electromagnetic 11457 | . . 81 3070 115 . 434 1481 1075 2313 158 . 502 . 1180 451 597 . . Impact . | . . . . . . . . . . . . . . . . . . . Slashing 4193 | . . . . . . . 49 458 819 1944 428 305 . . . 116 . 74 Piercing . | . . . . . . . . . . . . . . . . . . . Highest Corruption 12 | . 2 2 . . . . 9 12 12 . . . . . . 2 2 12 Average Corruption 5 | . 2 2 . . . . 7 11 12 . . . . . . 1 2 3 Corruption Purged . | . . . . . . . . . . . . . . . . . . . Corruption Blocked . | . . . . . . . . . . . . . . . . . . . Effects 366 | . 6 12 . . . . 67 54 131 . . . . . . 32 59 5 Message Errors 85 | . . 3 . . . . 10 19 27 . . . . . . 10 16 . Matter Fused 72 | . 4 1 . . . . 16 7 26 . . . . . . 4 13 1 Heat Flow Errors 30 | . . 3 . . . . 9 6 7 . . . . . . 1 4 . Energy Discharges 46 | . . 2 . . . . 7 6 16 . . . . . . 4 9 2 Parts Rejected 7 | . . . . . . . 1 1 3 . . . . . . 1 . 1 Parts Fused 5 | . . . . . . . 1 . 2 . . . . . . 1 1 . Data Loss (minor) 65 | . 1 . . . . . 11 9 26 . . . . . . 8 9 1 Data Loss (major) 14 | . . 1 . . . . 5 1 5 . . . . . . 1 1 . Misfires 22 | . . . . . . . 3 2 11 . . . . . . 1 5 . Alerts 7 | . 1 1 . . . . 1 . 4 . . . . . . . . . Misdirections 1 | . . . . . . . . . 1 . . . . . . . . . Weapon Failures 12 | . . 1 . . . . 3 3 3 . . . . . . 1 1 . Overload Shots . | . . . . . . . . . . . . . . . . . . . Overflow Damage 984 | . . . 8 5 . 2 122 32 108 401 3 20 . 25 216 28 . 14 Projectiles 174 | . . . 8 5 . 2 17 . 33 . . 20 . 20 41 28 . . Explosions 288 | . . . . . . . 105 3 . . . . . 5 175 . . . Melee 522 | . . . . . . . . 29 75 401 3 . . . . . . 14 Knockbacks 17 | . . . . . . . . . . . . . . 3 8 4 2 . Impact . | . . . . . . . . . . . . . . . . . . . Kinetic 16 | . . . . . . . . . . . . . . 3 7 4 2 . Secondary 1 | . . . . . . . . . . . . . . . 1 . . . Self-Inflicted Damage 528 | . . 25 124 . . . 167 79 . . . . . 15 . 118 . . Shots 16 | . . 1 4 . . . 2 4 . . . . . 1 . 4 . . Rammed . | . . . . . . . . . . . . . . . . . . . Targets Rammed 1 | . 1 . . . . . . . . . . . . . . . . . Kicked . | . . . . . . . . . . . . . . . . . . . Crushed 1 | . 1 . . . . . . . . . . . . . . . . . Highest Temperature 552 | . 34 251 258 120 . 300 472 552 468 154 . 36 . 372 446 266 236 . Average Temperature 93 | . 13 54 81 48 . 131 113 124 103 81 . 13 . 140 69 93 82 . Received Heat Transfer 3245 | . 249 117 324 . . . 846 78 558 84 45 27 . 348 264 236 69 . Effects 22 | . . 2 . . . 3 3 3 4 . . . . 1 . 4 2 . Shutdowns 1 | . . . . . . . . 1 . . . . . . . . . . Energy Bleed 5 | . . . . . . 1 . 1 2 . . . . . . 1 . . Interference 14 | . . 2 . . . 2 3 1 1 . . . . . . 3 2 . Matter Decay 1 | . . . . . . . . . 1 . . . . . . . . . Damage (minor) 1 | . . . . . . . . . . . . . . 1 . . . . Siege Activations . | . . . . . . . . . . . . . . . . . . . Robots Corrupted 17 | . . . 3 . . . 3 2 4 . . . . 1 2 2 . . Combat Hostiles 14 | . . . 1 . . . 3 2 3 . . . . 1 2 2 . . Parts Fried 67 | . . . 22 . . 2 9 7 19 . . . . 5 1 2 . . Impact Corruptions . | . . . . . . . . . . . . . . . . . . . Robots Melted . | . . . . . . . . . . . . . . . . . . . Combat Hostiles . | . . . . . . . . . . . . . . . . . . . Parts Melted 3 | . . . . . . . . 2 . . . . . 1 . . . . Heat Transferred 4575 | . . . 650 . . . 250 2233 692 . . . . 50 700 . . . Parts Sabotaged . | . . . . . . . . . . . . . . . . . . . Parts Stolen 7 | . . . . . . . . . . . . 4 . . . . 3 . Parts Stripped . | . . . . . . . . . . . . . . . . . . . Power Chain Reactions 21 | . . 1 9 . . . 3 1 2 . . . . 3 1 1 . . Alert | -11 -10 -10 -9 -9 -9 -8 -8 -8 -8 -7 -7 -7 -7 -6 -6 -6 -6 -6 ------- Run | Yrd Mat Min Mat Min Exi Min Mat Gar Mat Fac Low Low Zio Pro Fac Low Low Dat Peak Influence 1166 | 10 249 140 697 162 . 110 447 1166 687 437 . . . . 396 . . . Initial 568 | . 6 . 3 162 . . 23 63 568 296 . . . . 149 . . . Average 259 | 4 73 103 397 37 . 26 214 620 425 306 . . . . 210 . . . Maximum Alert Level 4 | . 1 . 2 . . . 2 4 2 2 . . . . 1 . . . Low Security (%) 46 | 100 98 100 7 100 . 100 50 12 2 . . . . . 53 . . . Level 1 31 | . 1 . 52 . . . 36 8 47 94 . . . . 46 . . . Level 2 19 | . . . 40 . . . 13 30 49 5 . . . . . . . . Level 3 2 | . . . . . . . . 41 . . . . . . . . . . Level 4 . | . . . . . . . . 6 . . . . . . . . . . Level 5 . | . . . . . . . . . . . . . . . . . . . High Security . | . . . . . . . . . . . . . . . . . . . Max Security . | . . . . . . . . . . . . . . . . . . . Squads Dispatched 33 | . 1 . 7 . . . 4 . 8 4 . . . 1 8 . . . Investigation 16 | . 1 . 6 . . . 3 . 4 1 . . . . 1 . . . Extermination 5 | . . . . . . . . . . 2 . . . . 3 . . . Reinforcement 10 | . . . 1 . . . 1 . 3 1 . . . . 4 . . . Assault 2 | . . . . . . . . . 1 . . . . 1 . . . . Garrison . | . . . . . . . . . . . . . . . . . . . Intercept . | . . . . . . . . . . . . . . . . . . . Searches Triggered . | . . . . . . . . . . . . . . . . . . . Construction Impeded 1 | . . . . . . . . . . . . . . . 1 . . . Haulers Reinforced 1 | . . . . . . . . . . . . . . . 1 . . . Active Scanning Responses . | . . . . . . . . . . . . . . . . . . . Cargo Convoy Interrupts 2 | . . . . . . . . . . 1 . . . . 1 . . . Stealth | -11 -10 -10 -9 -9 -9 -8 -8 -8 -8 -7 -7 -7 -7 -6 -6 -6 -6 -6 --------- Run | Yrd Mat Min Mat Min Exi Min Mat Gar Mat Fac Low Low Zio Pro Fac Low Low Dat Distress Signals 15 | . 1 . 4 . . . 2 . 6 1 . . . . 1 . . . Communications Jammed . | . . . . . . . . . . . . . . . . . . . Distress Signals . | . . . . . . . . . . . . . . . . . . . Times Spotted 308 | . 23 12 46 . . 9 32 25 47 21 5 8 . 21 29 19 7 4 Peak Tracking Total 10 | . 3 3 4 . . 4 5 5 5 6 3 5 . 10 4 5 3 4 Tactical Retreats 21 | . . 3 . . . 1 4 2 3 2 1 . . 1 3 1 . . Traps | -11 -10 -10 -9 -9 -9 -8 -8 -8 -8 -7 -7 -7 -7 -6 -6 -6 -6 -6 ------- Run | Yrd Mat Min Mat Min Exi Min Mat Gar Mat Fac Low Low Zio Pro Fac Low Low Dat Traps Triggered 14 | . 2 . 2 1 . . 4 3 1 1 . . . . . . . . Indirectly . | . . . . . . . . . . . . . . . . . . . Trap Hack Attempts 57 | . . . . . . . . . 57 . . . . . . . . . Triggered . | . . . . . . . . . . . . . . . . . . . Disarmed . | . . . . . . . . . . . . . . . . . . . Reprogrammed 6 | . . . . . . . . . 6 . . . . . . . . . Reused 3 | . . . . . . . . . 3 . . . . . . . . . Traps Extracted . | . . . . . . . . . . . . . . . . . . . Installed . | . . . . . . . . . . . . . . . . . . . Triggered 6 | . . . . . . . . 1 3 1 1 . . . . . . . Machines | -11 -10 -10 -9 -9 -9 -8 -8 -8 -8 -7 -7 -7 -7 -6 -6 -6 -6 -6 ---------- Run | Yrd Mat Min Mat Min Exi Min Mat Gar Mat Fac Low Low Zio Pro Fac Low Low Dat Machines Disabled 46 | . 1 . 10 . . . 9 9 5 . . . . 1 11 . . . Max in Single Turn 5 | . 1 . 1 . . . 5 1 1 . . . . 1 4 . . . Garrison Access 2 | . . . . . . . . . 1 . . . . . 1 . . . Garrison Relay 6 | . . . . . . . . 6 . . . . . . . . . . Machines Repaired . | . . . . . . . . . . . . . . . . . . . Machines Dismantled . | . . . . . . . . . . . . . . . . . . . Machines Sabotaged . | . . . . . . . . . . . . . . . . . . . Overloaded Fab Kills . | . . . . . . . . . . . . . . . . . . . Hacking | -11 -10 -10 -9 -9 -9 -8 -8 -8 -8 -7 -7 -7 -7 -6 -6 -6 -6 -6 --------- Run | Yrd Mat Min Mat Min Exi Min Mat Gar Mat Fac Low Low Zio Pro Fac Low Low Dat Machines Accessed 73 | . 9 . 12 2 2 . 12 1 12 7 1 . . 1 9 . 1 4 Terminals 41 | . 8 . 7 1 . . 10 1 8 2 . . . . 4 . . . Fabricators 2 | . . . . . . . . . . . . . . . 2 . . . Repair Stations 8 | . 1 . 2 . . . . . 1 3 . . . . 1 . . . Recycling Units 1 | . . . 1 . . . . . . . . . . . . . . . Scanalyzers 7 | . . . 2 . . . 1 . 2 1 . . . . 1 . . . Garrison Access 4 | . . . . . . . 1 . 1 1 . . . . 1 . . . Total Hacks 252 | . 37 . 48 4 2 . 39 3 39 18 1 . . 1 29 . 1 30 Successful 156 | . 25 . 29 2 2 . 22 2 18 8 1 . . 1 15 . 1 30 Failed 95 | . 11 . 19 2 . . 17 1 21 10 . . . . 14 . . . Catastrophic 11 | . . . 2 1 . . . . 4 . . . . . 4 . . . Database Lockouts 1 | . 1 . . . . . . . . . . . . . . . . . Manual 101 | . 27 . 21 3 1 . 20 1 19 4 . . . . 5 . . . Terminals 153 | . 32 . 29 3 . . 35 3 29 6 . . . . 16 . . . Fabricators 6 | . . . . . . . . . . . . . . . 6 . . . Repair Stations 25 | . 5 . 7 . . . . . 3 8 . . . . 2 . . . Recycling Units 1 | . . . 1 . . . . . . . . . . . . . . . Scanalyzers 24 | . . . 11 . . . 3 . 5 2 . . . . 3 . . . Garrison Access 7 | . . . . . . . 1 . 2 2 . . . . 2 . . . Terminal Hacks 85 | . 7 . 11 2 2 . 8 2 10 4 1 . . 1 6 . 1 30 Record 13 | . . . . . 1 . . . . . . . . 1 . . . 11 Part Schematic 13 | . . . 1 1 . . . . . . . . . . . . . 11 Robot Schematic 5 | . . . . . . . . . . . . . . . . . . 5 Robot Analysis 7 | . 2 . 3 . . . 1 . . . . . . . 1 . . . Prototype ID Bank 5 | . . . 1 . . . . . 1 . . . . . . . . 3 Open Door 3 | . . . . 1 . . . . . . 1 . . . . . 1 . Level Access Points 1 | . . . . . . . 1 . . . . . . . . . . . Branch Access Points 4 | . . . . . . . 1 . 1 1 . . . . 1 . . . Terminal Index 3 | . 1 . . . . . 1 . 1 . . . . . . . . . Garrison Index 1 | . . . . . . . . . 1 . . . . . . . . . Alert Level 4 | . . . . . . . . . 2 1 . . . . 1 . . . Unreport Threat 9 | . . . 3 . . . 2 . 3 . . . . . 1 . . . Locate Traps 6 | . 2 . 2 . . . 1 . . 1 . . . . . . . . Recall Investigation 1 | . . . . . . . . . . 1 . . . . . . . . Hauler Manifests 2 | . 1 . 1 . . . . . . . . . . . . . . . Registered Prototypes 1 | . . . . . . . . . . . . . . . 1 . . . Zone Layout 4 | . 1 . . . . . 1 . 1 . . . . . 1 . . . Garrison Registry 1 | . . . . . . . . 1 . . . . . . . . . . Patrol Navigation 1 | . . . . . . . . 1 . . . . . . . . . . Derelict Proto ID Bank 1 | . . . . . 1 . . . . . . . . . . . . . Fabricator Hacks 3 | . . . . . . . . . . . . . . . 3 . . . Network Status 1 | . . . . . . . . . . . . . . . 1 . . . Load Schematic 1 | . . . . . . . . . . . . . . . 1 . . . Build 1 | . . . . . . . . . . . . . . . 1 . . . Repair Station Hacks 10 | . 4 . 2 . . . . . 2 2 . . . . . . . . Scan Component 7 | . 2 . 2 . . . . . 1 2 . . . . . . . . Repair 3 | . 2 . . . . . . . 1 . . . . . . . . . Recycling Unit Hacks . | . . . . . . . . . . . . . . . . . . . Scanalyzer 20 | . . . 9 . . . 3 . 4 2 . . . . 2 . . . Insert Component 9 | . . . 4 . . . 1 . 2 1 . . . . 1 . . . Analyze 11 | . . . 5 . . . 2 . 2 1 . . . . 1 . . . Garrison Access Hacks 3 | . . . . . . . 1 . 1 . . . . . 1 . . . Unlock Access 2 | . . . . . . . 1 . 1 . . . . . . . . . Seal Access 1 | . . . . . . . . . . . . . . . 1 . . . Unauthorized Hacks 35 | . 14 . 7 . . . 10 . 1 . . . . . 3 . . . Terminals 31 | . 14 . 5 . . . 10 . 1 . . . . . 1 . . . Assimilate 3 | . . . . . . . 1 . 1 . . . . . 1 . . . Botnet 6 | . 5 . . . . . 1 . . . . . . . . . . . Disrupt 1 | . 1 . . . . . . . . . . . . . . . . . Operators 2 | . 2 . . . . . . . . . . . . . . . . . Skim 19 | . 6 . 5 . . . 8 . . . . . . . . . . . Fabricators 2 | . . . . . . . . . . . . . . . 2 . . . Report 1 | . . . . . . . . . . . . . . . 1 . . . Haulers 1 | . . . . . . . . . . . . . . . 1 . . . Repair Stations . | . . . . . . . . . . . . . . . . . . . Recycling Units 1 | . . . 1 . . . . . . . . . . . . . . . Tunnel 1 | . . . 1 . . . . . . . . . . . . . . . Scanalyzers 1 | . . . 1 . . . . . . . . . . . . . . . Extract 1 | . . . 1 . . . . . . . . . . . . . . . Garrison Access . | . . . . . . . . . . . . . . . . . . . Data Cores Recovered 1 | . . . 1 . . . . . . . . . . . . . . . Used . | . . . . . . . . . . . . . . . . . . . Hacking Detections 58 | . 8 . 11 1 . . 11 . 11 7 . . . . 9 . . . Full Trace Events 12 | . 1 . 4 . . . 3 . 3 . . . . . 1 . . . Feedback Events . | . . . . . . . . . . . . . . . . . . . Feedback Blocked . | . . . . . . . . . . . . . . . . . . . Robot Schematics Acquired 5 | . . . . . . . . . . . . . . . . . . 5 Robots Built . | . . . . . . . . . . . . . . . . . . . Authchips . | . . . . . . . . . . . . . . . . . . . Time . | . . . . . . . . . . . . . . . . . . . Total Robot Build Rating . | . . . . . . . . . . . . . . . . . . . Part Schematics Acquired 24 | . . . 8 . . . 1 . 2 1 . . . . 1 . . 11 Parts Built 2 | . . . . . . . . . . . . . . . 2 . . . Authchips . | . . . . . . . . . . . . . . . . . . . Time 36 | . . . . . . . . . . . . . . . 36 . . . Total Part Build Rating 6 | . . . . . . . . . . . . . . . 6 . . . Parts Repaired 3 | . 2 . . . . . . . 1 . . . . . . . . . Time 71 | . 52 . . . . . . . 19 . . . . . . . . . Parts Recycled . | . . . . . . . . . . . . . . . . . . . Recycled Matter . | . . . . . . . . . . . . . . . . . . . Retrieved Matter . | . . . . . . . . . . . . . . . . . . . Retrieved Components . | . . . . . . . . . . . . . . . . . . . Parts Scanalyzed 9 | . . . 4 . . . 1 . 2 1 . . . . 1 . . . Part Schematics Acquired 9 | . . . 4 . . . 1 . 2 1 . . . . 1 . . . Parts Damaged . | . . . . . . . . . . . . . . . . . . . Bothacking | -11 -10 -10 -9 -9 -9 -8 -8 -8 -8 -7 -7 -7 -7 -6 -6 -6 -6 -6 ------------ Run | Yrd Mat Min Mat Min Exi Min Mat Gar Mat Fac Low Low Zio Pro Fac Low Low Dat Used RIF Installer . | . . . . . . . . . . . . . . . . . . . Robots Hacked 9 | . . . . . 4 . . . 4 . . . . . . . . 1 Non-combat 7 | . . . . . 3 . . . 4 . . . . . . . . . Combat 2 | . . . . . 1 . . . . . . . . . . . . 1 Robot Hacks Applied 9 | . . . . . 4 . . . 4 . . . . . . . . 1 parse_system 9 | . . . . . 4 . . . 4 . . . . . . . . 1 Relay Couplers Released 21 | . . . . . . . . 21 . . . . . . . . . . Machine Destruction 21 | . . . . . . . . 21 . . . . . . . . . . Fabnet Peak Effective % . | . . . . . . . . . . . . . . . . . . . Robots Rewired 3 | . . . . . . . . . . . . . . 2 . 1 . . Allies Hacked . | . . . . . . . . . . . . . . . . . . . Hacks Repelled . | . . . . . . . . . . . . . . . . . . . Allies | -11 -10 -10 -9 -9 -9 -8 -8 -8 -8 -7 -7 -7 -7 -6 -6 -6 -6 -6 -------- Run | Yrd Mat Min Mat Min Exi Min Mat Gar Mat Fac Low Low Zio Pro Fac Low Low Dat Total Allies 9 | . . . . . . . 1 . 1 . . . 3 2 1 1 . . Largest Group 3 | . . . . . . . 1 1 1 . . . 3 3 2 1 . . Highest-Rated Group 84 | . . . . . . . 10 10 10 . . . 84 84 50 29 . . Highest-Rated Ally 31 | . . . . . . . 10 10 10 . . . 31 31 30 29 . . Total Orders 13 | . . . . . . . . 6 5 . . . . . 2 . . . STAY 6 | . . . . . . . . 3 3 . . . . . . . . . FOLLOW 5 | . . . . . . . . 3 2 . . . . . . . . . EXPLORE 1 | . . . . . . . . . . . . . . . 1 . . . RETURN 1 | . . . . . . . . . . . . . . . 1 . . . Ally Attacks 50 | . . . . . . . . . . . . . . 26 14 10 . . Total Damage 908 | . . . . . . . . . . . . . . 463 273 172 . . Kills 3 | . . . . . . . . . . . . . . 2 1 . . . Allies Corrupted . | . . . . . . . . . . . . . . . . . . . Allies Melted 2 | . . . . . . . . . . . . . . . 2 . . . Intel | -11 -10 -10 -9 -9 -9 -8 -8 -8 -8 -7 -7 -7 -7 -6 -6 -6 -6 -6 ------- Run | Yrd Mat Min Mat Min Exi Min Mat Gar Mat Fac Low Low Zio Pro Fac Low Low Dat Robot Analysis Total 7 | . 2 . 3 . . . 1 . . . . . . . 1 . . . Derelict Logs Recovered 13 | . . 1 . 3 . . . . . . 2 1 . 3 . 1 2 . Drone Launches 1 | . . . . . . . . . . . . . . . 1 . . . Drone Recoveries 1 | . . . . . . . . . . . . . . . 1 . . . Exploration | -11 -10 -10 -9 -9 -9 -8 -8 -8 -8 -7 -7 -7 -7 -6 -6 -6 -6 -6 ------------- Run | Yrd Mat Min Mat Min Exi Min Mat Gar Mat Fac Low Low Zio Pro Fac Low Low Dat Turns Passed 40898 | 118 2083 839 4123 1831 975 1989 2629 1323 3204 1086 2533 2556 1724 2790 2045 3543 5077 430 Spaces Moved 16146 | 59 931 512 1242 560 300 597 902 570 1138 654 1298 1347 1176 1246 812 1038 1595 169 Core 2 | 2 . . . . . . . . . . . . . . . . . . Treads 8254 | 57 621 . 957 560 300 597 822 115 1065 19 . . . . 444 1011 1570 116 Legs . | . . . . . . . . . . . . . . . . . . . Wheels 7890 | . 310 512 285 . . . 80 455 73 635 1298 1347 1176 1246 368 27 25 53 Hover . | . . . . . . . . . . . . . . . . . . . Flight . | . . . . . . . . . . . . . . . . . . . Fastest Speed 50 | 50 130 145 130 320 320 320 145 126 126 115 115 115 115 115 115 145 160 130 Average Speed 196 | 156 183 145 278 320 320 320 240 152 236 133 116 115 115 126 199 246 243 212 Slowest Speed 330 | 160 320 190 320 320 320 320 250 250 245 242 130 130 145 160 330 250 247 245 Overloaded Moves . | . . . . . . . . . . . . . . . . . . . Propulsion Burnouts . | . . . . . . . . . . . . . . . . . . . Robots Hopped . | . . . . . . . . . . . . . . . . . . . Cave-ins Triggered 1 | . . . . . . . . . . . . . . . . . . 1 Exploration Rate (%) 78 | 4 97 96 97 99 69 98 76 74 87 25 96 99 88 95 28 89 99 79 Regions Visited 18 Branch Regions 11 Pre-discovered Areas 12 | . 1 . 3 1 1 . 2 . . . 1 . 2 . . . . 1 Known Exits Taken 10 | . . 1 1 . . 1 1 . 1 1 1 . . 1 1 . 1 . Unknown Exits Taken 7 | 1 1 . . 1 1 . . . . . . 1 1 . . 1 . . Scrap Searched 19 | . . 1 . 1 . 1 . . . . 1 4 2 3 . 2 4 . Spaces Dug 80 | . 1 . . . . . 5 12 7 15 . 5 . . 8 9 15 3 Terrain Destroyed 290 | . 1 6 63 . . . 68 12 17 16 . 5 . 9 46 23 21 3 Melee 49 | . . . . . . . 4 12 7 15 . 5 . . . 2 1 3 Projectile 67 | . 1 . . . . . 1 . . 1 . . . 3 25 16 20 . AOE 174 | . . 6 63 . . . 63 . 10 . . . . 6 21 5 . . Terrain Rammed . | . . . . . . . . . . . . . . . . . . . Walls Destroyed . | . . . . . . . . . . . . . . . . . . . Machines Disabled . | . . . . . . . . . . . . . . . . . . . Actions | -11 -10 -10 -9 -9 -9 -8 -8 -8 -8 -7 -7 -7 -7 -6 -6 -6 -6 -6 --------- Run | Yrd Mat Min Mat Min Exi Min Mat Gar Mat Fac Low Low Zio Pro Fac Low Low Dat Total 24087 | 76 1167 564 1738 594 317 646 1192 867 1497 814 2317 2312 1547 2419 1106 1949 2737 228 Wait 6188 | 4 85 11 282 25 4 33 95 135 107 22 991 900 357 1098 101 838 1082 18 Move 16128 | 58 930 511 1241 559 299 596 901 569 1137 653 1297 1346 1175 1245 811 1037 1594 169 Hop . | . . . . . . . . . . . . . . . . . . . Pick Up 208 | 3 36 3 32 3 4 . 25 3 23 20 6 7 2 3 24 6 6 2 Fast Attach 109 | 7 7 . 7 . . . 10 4 15 12 . 9 6 9 15 1 6 1 Attach 80 | . 4 2 5 . . . 5 2 5 6 6 4 . 5 15 2 3 16 Detach 11 | 1 2 . . . . . . . . . . . . 2 4 . 1 1 Swap 258 | . 9 12 37 . 2 . 36 44 28 17 3 5 . 12 25 17 6 5 Drop 260 | . 21 2 43 3 4 1 30 7 31 32 6 13 7 12 27 4 10 7 Fire 628 | 3 72 23 91 4 . 16 85 68 66 7 . 16 . 27 84 38 28 . Melee 156 | . . . . . 4 . 5 32 28 45 8 12 . 6 . 6 1 9 Ram . | . . . . . . . . . . . . . . . . . . . Kick . | . . . . . . . . . . . . . . . . . . . Crush 1 | . 1 . . . . . . . . . . . . . . . . . Escape Stasis 3 | . . . . . . . . 3 . . . . . . . . . . Rewire . | . . . . . . . . . . . . . . . . . . . Trap 57 | . . . . . . . . . 57 . . . . . . . . . Miscellaneous . | . . . . . . . . . . . . . . . . . . . Route ------- -11/Scrapyard -10/Materials (discovered 6 exits: *Mat x3 / [*Min x2] / Sub) -10/Mines (discovered 3 exits: *Mat x2 / Sub) -9/Materials (discovered 6 exits: *Mat x3 / *Min x2 / [*Sto]) -9/Mines (discovered 3 exits: *Mat x2 / *Exi) -9/Exiles -8/Mines (discovered 2 exits: *Mat x2) -8/Materials (discovered 4 exits: *Fac x3 / Gar) -8/Garrison (discovered 3 exits: *Mat x3) -8/Materials (discovered 3 exits: *Fac x3) -7/Factory (discovered 5 exits: Fac x3 / *Low x2) -7/Lower Caves (discovered 2 exits: *Low / *Zio) -7/Lower Caves (discovered 2 exits: *Fac / *Zio) -7/Zion -6/Proximity Caves -6/Factory (discovered 3 exits: [*Fac] / *Low x2) -6/Lower Caves -6/Lower Caves (discovered 2 exits: [*Fac] / *Dat) -6/Data Miner (discovered 1 exit: [*Pro]) History --------- Turn | Location | Event 10 | -11/Scrapyard | Discovered new exit (range 15) 119 | -11/Scrapyard | Entered Materials 325 | -10/Materials | Build established: Mutant 433 | -10/Materials | Discovered new exit (range 13) 580 | -10/Materials | Discovered new exit (range 5) 786 | -10/Materials | Central database locked down 825 | -10/Materials | Repaired Lgt. Treads 853 | -10/Materials | Repaired Lgt. Treads 873 | -10/Materials | Discovered new exit (range 15) 1373 | -10/Materials | Discovered new exit (range 13) 1485 | -10/Materials | Learned Storage trap positions 1516 | -10/Materials | Learned location of Subcaves (-10) 1537 | -10/Materials | Learned 4 Subcaves zone layouts 1550 | -10/Materials | Identified exit to Materials 1550 | -10/Materials | Identified exit to Subcaves 1552 | -10/Materials | Learned location of 2 exits from Mines 1571 | -10/Materials | Loaded intel: 8 terminal locations 2202 | -10/Materials | Entered Mines 2203 | -10/Mines | Assembled infested the area 2470 | -10/Mines | Discovered exit to Materials (range 14) 2619 | -10/Mines | Learned Materials interactive machine intel 3003 | -10/Mines | Core integrity fell below 50% 3041 | -10/Mines | Entered Materials 3041 | -9/Materials | Evolved 2 slots: Utility x2 3042 | -9/Materials | Loaded intel: 18 interactive machine locations 3260 | -9/Materials | Discovered new exit (range 14) 3530 | -9/Materials | Discovered new exit (range 8) 3865 | -9/Materials | Discovered new exit (range 16) 4662 | -9/Materials | Discovered new exit (range 16) 5044 | -9/Materials | Build established: Hacker-Mutant 5769 | -9/Materials | Identified exit to Mines 5832 | -9/Materials | Identified exit to Materials 5832 | -9/Materials | Learned location of 2 exits from Materials 5885 | -9/Materials | Learned location of 2 exits from Materials 5927 | -9/Materials | Learned Storage stockpile data 5985 | -9/Materials | Learned location of 1 exit from Recycling 6059 | -9/Materials | Learned location of Zion (-7) 7164 | -9/Materials | Entered Mines 7245 | -9/Mines | Met a Derelict who couldn't figure out how to use a Trap Extractor 7414 | -9/Mines | Received a Rocket Launcher from a helpful Derelict 7416 | -9/Mines | Build established: Mutant 7589 | -9/Mines | Learned location of 1 exit from Lower Caves 8362 | -9/Mines | Learned location of 1 exit from Materials 8729 | -9/Mines | Deemed a non-threat by the Exiles lab entrance 8729 | -9/Mines | Discovered new exit (range 5) 8995 | -9/Mines | Entered Exiles 9075 | -9/Exiles | Met 8R-AWN 9133 | -9/Exiles | Met EX-HEX 9221 | -9/Exiles | Met EX-BIN 9257 | -9/Exiles | Aligned with FarCom system 9261 | -9/Exiles | Given EX-Vault access code 9337 | -9/Exiles | Opened EX-Vault 9358 | -9/Exiles | Found Longsword +1 9375 | -9/Exiles | Found Supersonic Drone Bay 9383 | -9/Exiles | Found Chronowheel 9451 | -9/Exiles | Warned to stay clear of 0b10 Research branches 9540 | -9/Exiles | Met EX-DEC 9931 | -9/Exiles | Discovered new exit (range 10) 9970 | -9/Exiles | Stole three prototypes: Supersonic Drone Bay, Chronowheel, Longsword +1 9970 | -9/Exiles | Entered Mines 10112 | -8/Mines | Discovered exit to Materials (range 5) 11430 | -8/Mines | Discovered exit to Materials (range 12) 11959 | -8/Mines | Entered Materials 11959 | -8/Materials | Evolved 2 slots: Propulsion x2 11960 | -8/Materials | Identified exit to Factory 14186 | -8/Materials | Identified exit to Garrison 14196 | -8/Materials | Learned 8 Factory zone layouts 14244 | -8/Materials | Learned Factory garrison access intel 14253 | -8/Materials | Learned Factory fabricator intel 14274 | -8/Materials | Learned location of 2 exits from Factory 14307 | -8/Materials | Learned Factory repair station intel 14588 | -8/Materials | Entered Garrison 14588 | -8/Garrison | Accompanied by 1 ally 14668 | -8/Garrison | Triggered checkpoint 14740 | -8/Garrison | Triggered checkpoint 14813 | -8/Garrison | System corruption reached 10% 14838 | -8/Garrison | Garrison Relay disabled 14859 | -8/Garrison | Garrison Relay disabled 14979 | -8/Garrison | Garrison Relay disabled 15062 | -8/Garrison | Triggered checkpoint 15083 | -8/Garrison | Triggered checkpoint 15112 | -8/Garrison | Build established: Scavenger-Mutant 15166 | -8/Garrison | Triggered checkpoint 15385 | -8/Garrison | Garrison Relay disabled 15514 | -8/Garrison | Discovered new exit (range 45) 15514 | -8/Garrison | Discovered new exit (range 26) 15514 | -8/Garrison | Discovered new exit (range 52) 15690 | -8/Garrison | Triggered checkpoint 15693 | -8/Garrison | Garrison Relay disabled 15715 | -8/Garrison | Identified exit to Materials 15738 | -8/Garrison | Core integrity fell below 50% 15871 | -8/Garrison | Garrison Relay disabled 15911 | -8/Garrison | Entered Materials 15911 | -8/Materials | Accompanied by 1 ally 16195 | -8/Materials | Repaired Arm. Treads 17296 | -8/Materials | Build established: Mutant 18036 | -8/Materials | Discovered exit to Factory (range 16) 18959 | -8/Materials | Build established: Scavenger-Mutant 19076 | -8/Materials | Identified exit to Garrison 19115 | -8/Materials | Entered Factory 19115 | -7/Factory | Evolved 2 slots: Utility x1, Weapon x1 19116 | -7/Factory | Identified exit to Factory 19117 | -7/Factory | FarCom data flow suspended 19118 | -7/Factory | Loaded intel: 6 fabricator locations 19119 | -7/Factory | Loaded intel: 6 repair station locations 19120 | -7/Factory | Loaded intel: 3 garrison access locations 19488 | -7/Factory | Build established: Mutant 19723 | -7/Factory | Identified exit to Lower Caves 19839 | -7/Factory | Build established: Hacker-Mutant 20138 | -7/Factory | Cargo convoy interrupted 20201 | -7/Factory | Entered Lower Caves 20202 | -7/Lower Caves | Identified exit to Lower Caves 20233 | -7/Lower Caves | Met a Warlord Commander 20234 | -7/Lower Caves | Learned location of Warlord (-4) 20235 | -7/Lower Caves | Warlord Commander delivered Encrypted Comm Array 20245 | -7/Lower Caves | Found Encrypted Comm Array 20601 | -7/Lower Caves | Build established: Assassin 20951 | -7/Lower Caves | A Derelict revealed a hidden shortcut to a safe place 21417 | -7/Lower Caves | Learned Factory emergency access door positions 21731 | -7/Lower Caves | Learned Factory trap positions 21932 | -7/Lower Caves | Attracted the attention of an 0b10 checkpoint 22734 | -7/Lower Caves | Entered another Lower Caves area 22763 | -7/Lower Caves | Discovered exit to Factory (range 14) 22805 | -7/Lower Caves | Encountered a Warlord checkpoint 24163 | -7/Lower Caves | Spotted P0-GJX(f) 24165 | -7/Lower Caves | Encountered a Master Thief 24170 | -7/Lower Caves | Spotted DA-RDM(f) 24170 | -7/Lower Caves | Spotted 1O-OT1(f) 24171 | -7/Lower Caves | Encountered a Master Thief 24171 | -7/Lower Caves | Encountered a Master Thief 24174 | -7/Lower Caves | Discovered new exit (range 15) 24176 | -7/Lower Caves | Chronowheel stolen by Master Thief 24176 | -7/Lower Caves | Lrn. Terrain Scanner stolen by Master Thief 24179 | -7/Lower Caves | Imp. EM Pulse Cannon stolen by Master Thief 24582 | -7/Lower Caves | Learned Factory emergency access door positions 24798 | -7/Lower Caves | Build established: Skirmisher 25290 | -7/Lower Caves | Entered Zion 25464 | -7/Zion | Discovered new exit (range 12) 25510 | -7/Zion | Build established: Assassin 25789 | -7/Zion | Gained Derelict followers 26489 | -7/Zion | Met Imprinter 26713 | -7/Zion | Found Unknown Piercing Weapon 26713 | -7/Zion | Identified CR-A16's Pointy Stick 27014 | -7/Zion | Entered Proximity Caves 27014 | -6/Proximity Caves | Accompanied by 3 allies 27273 | -6/Proximity Caves | Learned Factory stockpile data 27853 | -6/Proximity Caves | Build established: Skirmisher 27859 | -6/Proximity Caves | Learned 4 Factory zone layouts 28360 | -6/Proximity Caves | Found Alien Artifact 28360 | -6/Proximity Caves | Identified Dimensional Node Initializer 28360 | -6/Proximity Caves | Initialized slip node 29165 | -6/Proximity Caves | Discovered exit to Factory (range 17) 29586 | -6/Proximity Caves | Attracted the attention of an 0b10 outpost 29665 | -6/Proximity Caves | Destroyed 11 combat bots 29804 | -6/Proximity Caves | Entered Factory 29804 | -6/Factory | Accompanied by 2 allies 29804 | -6/Factory | Evolved 2 slots: Utility x2 29806 | -6/Factory | Loaded intel: 88 trap records 30034 | -6/Factory | Lost 5 parts (1p1n1u2w) 30268 | -6/Factory | Build established: Hacker-Gunner 30563 | -6/Factory | Fabricated Arm. Treads (x2) 31039 | -6/Factory | Identified exit to Lower Caves 31417 | -6/Factory | Discovered new exit (range 8) 31664 | -6/Factory | P-60 Hacker assimilated allied Technician 5a 31665 | -6/Factory | Cargo convoy interrupted 31849 | -6/Factory | Entered Lower Caves 32186 | -6/Lower Caves | Build established: Scavenger-Assassin 33131 | -6/Lower Caves | Build established: Skirmisher 34232 | -6/Lower Caves | Attracted the attention of an 0b10 outpost 34360 | -6/Lower Caves | Discovered new exit (range 15) 35331 | -6/Lower Caves | Attracted the attention of an 0b10 checkpoint 35392 | -6/Lower Caves | Entered another Lower Caves area 35405 | -6/Lower Caves | Learned Factory security intel 35578 | -6/Lower Caves | Discovered new exit (range 8) 36356 | -6/Lower Caves | Identified exit to Data Miner 38754 | -6/Lower Caves | Build established: Assassin 38804 | -6/Lower Caves | Spotted 2Y-MZO(f) 38805 | -6/Lower Caves | Spotted 1V-0KF(f) 38806 | -6/Lower Caves | Encountered a Master Thief 38806 | -6/Lower Caves | Encountered a Master Thief 38808 | -6/Lower Caves | Imp. Force Field stolen by Master Thief 38809 | -6/Lower Caves | KE Penetrator stolen by Master Thief 38811 | -6/Lower Caves | Spotted 77-WE5(f) 38812 | -6/Lower Caves | Encountered a Master Thief 38813 | -6/Lower Caves | Prc. Energy Filter stolen by Master Thief 39109 | -6/Lower Caves | Build established: Scavenger-Skirmisher 40469 | -6/Lower Caves | Entered Data Miner 40471 | -6/Data Miner | Discovered new exit (range 6) 40518 | -6/Data Miner | Met Data Miner 40606 | -6/Data Miner | Learned location of Section 7 (-2) 40606 | -6/Data Miner | Acquired the access code to Warlord's prototype stash 40647 | -6/Data Miner | Received God Mode back door access code from Data Miner 40799 | -6/Data Miner | Data Conduit disabled 40815 | -6/Data Miner | Crushed by falling debris 40851 | -6/Data Miner | Core integrity fell below 50% 40858 | -6/Data Miner | System corruption reached 10% 40892 | -6/Data Miner | Core integrity fell below 20% 40899 | -6/Data Miner | Destroyed by Enhanced Grunt with Neutron Cannon Last Messages --------------- 40869_ Adv. Treads destroyed. 40873_ System corrupted: Energy discharge (-87). 40874_ Tactical Coordination Suite destroyed. 40874_ Imp. Treads destroyed. 40878_ Tesla Rifle destroyed. 40878_ Med. Treads destroyed. 40879_ Lrn. Proton Cannon destroyed. 40892_ Com. Wheel destroyed. 40892_ Minigun destroyed. 40894_ Dropped Energy Well. 40894_ Hvy. Phase Cannon destroyed. 40895_ Extracted 15 energy. 40896_ Gauss Rifle destroyed. 40897_ Extracted 15 energy. 40897_ Dropped Huge Storage Unit. 40898_ Extracted 5 energy. 40898_ Adv. EMP Blaster destroyed. 40898_ Dropped Cld. Plasma Cannon. 40898_ Dropped Imp. Heavy Laser. 40899_ Extracted 15 energy. Map ----- +----------------------------------------------------+ | | | | | | | | | | | | | | | | | | | | | | | | | | | | | | | | | | | ????#??#?#???####?##########?#???###?#??#? | | #??##?#######?############??####?#???#?#?? | | #??##????######?####?##########??##?##?#?? | | #?###???##?####?#??###?####?########?###?? | | ??#?#?##?#####?##?#######?#?#######?#??#?# | | ##############?############### #??##??#?? | | """"""""""""###### ; ; ; !## #########? | | """"" "" """ # ; ; ;]!# < #####?????? | | "" "" !@! #######?#? | | "" /[ ##?## | | "" g ##?#? | | " g ###?? | | "" g ##???? | | "" g """""""""""""""#########? | | "" """"###############?##?#?##? | | """ """"##########?#?#??##?##??##? | | """"" ##########??#####?#?##???####? | | #### ## "###?######?#?#???##?#??#??#??? | | #### "## "#########?#?##?##?######?#?#?# | | ###" ### "#####?#########??####??##?#??# | | ###" ## "#####?####??#?###???#?#????##? | | #### ## "####?#####??####?#????#???#?#? | | ?"##" "###############?#???#??#?#???? | | ???#"### "########?###?#??##?##????????? | | "?##"#?# "##?#??####??##?#?#??#???#????? | | ""?#"### ""##?#?##?#???????????????????? | | ""##"## ""##?#?##?????????????????????? | | ??##"#"X ""##??###?#???????????????????? | | #"""""" "####?#???##?????????????????? | | ##""""" X"""""#?##?##?????????????????? | | ?###"#"X "##"#?#???#??????????????????? | | #??#"## X""""#??##????????????????????? | | ##????## "##"#?#??????????????????????? | +----------------------------------------------------+ Best States ------------- Heat Dissipation 64 Coolant Potential 65 Energy Generation 23 Energy Capacity 450 Matter Stores 300 Matter Capacity 300 Sight Range 16 Robot Scan Range 15 Terrain Scan Range 24 Terrain Scan Density 210 ECM Strength 2 EM Shielding 2 Corruption Block 8 Armor Coverage 600 Resistance: TH 10 Evasion (%) 40 Targeting Accuracy 8 Core Analysis 6 Recoil Reduction 4 Energy Filtering 50 Kinecelleration 30 Offensive Hacking 20 Defensive Hacking 11 Item Schematics ----------------- Hacking Suite | -9/Materials | Scanalyzed Datajack | -9/Materials | Scanalyzed Cargo Storage Unit | -9/Materials | Hacked Med. Armor Plating | -9/Materials | Scanalyzed Plasma Cutter | -9/Materials | Scanalyzed Shotgun | -9/Materials | Extracted Med. Storage Unit | -9/Materials | Extracted Visual Processing Unit | -9/Materials | Extracted Adv. ECM Suite | -8/Materials | Scanalyzed Arm. Treads | -8/Materials | Scanalyzed Imp. Datajack | -8/Materials | Scanalyzed Seismic Detector | -7/Factory | Scanalyzed Enh. Autogun | -6/Factory | Scanalyzed Combat Drone Bay | -6/Data Miner | Free Lgt. Regenerative Plating | -6/Data Miner | Free Cld. Gravmag System | -6/Data Miner | Free Imp. Matter Compressor | -6/Data Miner | Free Tiamat Missile Launcher | -6/Data Miner | Free Impulse Thruster | -6/Data Miner | Free Quantum Capacitor | -6/Data Miner | Free Arm. Medium Treads | -6/Data Miner | Free Adv. Datajack | -6/Data Miner | Free HERF Cannon | -6/Data Miner | Free Q-thruster | -6/Data Miner | Free Robot Schematics ------------------ R-10 Processor | -6/Data Miner | Free B-60 Warrior | -6/Data Miner | Free H-66 Slayer | -6/Data Miner | Free A-15 Conveyor | -6/Data Miner | Free Y-54 Guardian | -6/Data Miner | Free Fabricated ------------ Arm. Treads | x2 | -6/Factory Alien Tech Used ----------------- Dimensional Node Initializer Achievements -------------- None Challenges ------------ None Game ------ Seed FactoryCannonTrap Manual? 0 Play Time 03:40:15 Cumulative 226.7 hours Start 2025.05.03 @ 13:05:31 End 2025.05.03 @ 18:22:54 Sessions 3 Manual Loads 0 Difficulty Rogue Special Mode None Game No. 111 Rogue 111 Adventurer 0 Explorer 0 Win Type - Total 0 Types 0/0/0/0/0/0/0/0/0 Lore% 57 Gallery% 74 Achievement% 60 Wizard Run 0 Options --------- Layout 0 ASCII 0 Keyboard 0 Movement Mouse Keybinds 0 Fullscreen 1 Font 24/Smallcaps Map View 183x50 Zoom Use 0% Tactical HUD 1 Map Filters NONE Filters NONE Steam 0 RUN: e49ce969-2048-4bfe-bc16-1f6b28379f34